fUSD/lending_fUSD_20260418
["ID","MTS","AMOUNT","RATE_DAILY","PERIOD"]
[420730449,1776504633159,-151.0,9.666e-05,2]
[420730450,1776504633168,-577.11497904,9.673e-05,2]
[420730451,1776504633178,-500.0,9.673e-05,2]
[420730452,1776504633189,-165.74,9.676e-05,2]
[420730453,1776504633201,-1600.0,9.676e-05,2]
[420730454,1776504633210,-150.0,9.699e-05,2]
[420730455,1776504633221,-157.16768877,9.699e-05,2]
[420730456,1776504633231,-234.33132226,9.699e-05,2]
[420730457,1776504633243,-500.0,9.699e-05,2]
[420730458,1776504633253,-500.0,9.699e-05,2]
[420730459,1776504633262,-500.0,9.699e-05,2]
[420730460,1776504633271,-500.0,9.699e-05,2]
[420730461,1776504633282,-470.26209991,9.699e-05,2]
[420730462,1776504633291,-500.0,9.699e-05,2]
[420730463,1776504633302,-500.0,9.699e-05,2]
[420730464,1776504633312,-368.66552911,9.699e-05,2]
[420730465,1776504633323,-500.0,9.699e-05,2]
[420730467,1776504633682,-500.0,9.699e-05,2]
[420730468,1776504633692,-500.0,9.699e-05,2]
[420730469,1776504633701,-500.0,9.699e-05,2]
[420730470,1776504633710,-500.0,9.699e-05,2]
[420730471,1776504633720,-500.0,9.699e-05,2]
[420730472,1776504633729,-500.0,9.699e-05,2]
[420730473,1776504633739,-500.0,9.699e-05,2]
[420730474,1776504633748,-500.0,9.699e-05,2]
[420730475,1776504633758,-500.0,9.699e-05,2]
[420730476,1776504633767,-500.0,9.699e-05,2]
[420730477,1776504633776,-500.0,9.699e-05,2]
[420730478,1776504633786,-500.0,9.699e-05,2]
[420730479,1776504633795,-500.0,9.699e-05,2]
[420730480,1776504633804,-500.0,9.699e-05,2]
[420730481,1776504633814,-500.0,9.699e-05,2]
[420730482,1776504633823,-500.0,9.699e-05,2]
[420730483,1776504633832,-500.0,9.699e-05,2]
[420730484,1776504633842,-500.0,9.699e-05,2]
[420730485,1776504633852,-500.0,9.699e-05,2]
[420730486,1776504633860,-500.0,9.699e-05,2]
[420730487,1776504633870,-397.81172379,9.699e-05,2]
[420730488,1776504633879,-500.0,9.699e-05,2]
[420730489,1776504633888,-500.0,9.699e-05,2]
[420730490,1776504633898,-500.0,9.699e-05,2]
[420730491,1776504633909,-500.0,9.699e-05,2]
[420730492,1776504633918,-500.0,9.699e-05,2]
[420730493,1776504633928,-500.0,9.699e-05,2]
[420730494,1776504633937,-500.0,9.699e-05,2]
[420730495,1776504633946,-500.0,9.699e-05,2]
[420730496,1776504633955,-500.0,9.699e-05,2]
[420730497,1776504633965,-500.0,9.699e-05,2]
[420730498,1776504633974,-500.0,9.699e-05,2]
[420730499,1776504633983,-500.0,9.699e-05,2]
[420730500,1776504633993,-500.0,9.699e-05,2]
[420730501,1776504634002,-500.0,9.699e-05,2]
[420730502,1776504634011,-500.0,9.699e-05,2]
[420730503,1776504634020,-500.0,9.699e-05,2]
[420730504,1776504634030,-500.0,9.699e-05,2]
[420730505,1776504634039,-500.0,9.699e-05,2]
[420730506,1776504634048,-500.0,9.699e-05,2]
[420730507,1776504634060,-500.0,9.699e-05,2]
[420730508,1776504634068,-500.0,9.699e-05,2]
[420730509,1776504634078,-500.0,9.699e-05,2]
[420730510,1776504634088,-500.0,9.699e-05,2]
[420730511,1776504634097,-500.0,9.699e-05,2]
[420730512,1776504634108,-500.0,9.699e-05,2]
[420730513,1776504634117,-500.0,9.699e-05,2]
[420730514,1776504634126,-500.0,9.699e-05,2]
[420730515,1776504634135,-500.0,9.699e-05,2]
[420730516,1776504634144,-500.0,9.699e-05,2]
[420730517,1776504634153,-500.0,9.699e-05,2]
[420730518,1776504634162,-500.0,9.699e-05,2]
[420730519,1776504634171,-500.0,9.699e-05,2]
[420730520,1776504634180,-500.0,9.699e-05,2]
[420730521,1776504634190,-500.0,9.699e-05,2]
[420730522,1776504634200,-500.0,9.699e-05,2]
[420730523,1776504634211,-500.0,9.699e-05,2]
[420730524,1776504634220,-500.0,9.699e-05,2]
[420730525,1776504634229,-500.0,9.699e-05,2]
[420730526,1776504634238,-500.0,9.699e-05,2]
[420730527,1776504634248,-500.0,9.699e-05,2]
[420730528,1776504634258,-500.0,9.699e-05,2]
[420730529,1776504634267,-500.0,9.699e-05,2]
[420730530,1776504634276,-500.0,9.699e-05,2]
[420730531,1776504634286,-500.0,9.699e-05,2]
[420730532,1776504634295,-500.0,9.699e-05,2]
[420730533,1776504634305,-500.0,9.699e-05,2]
[420730534,1776504634315,-500.0,9.699e-05,2]
[420730535,1776504634325,-500.0,9.699e-05,2]
[420730536,1776504634335,-500.0,9.699e-05,2]
[420730537,1776504634345,-500.0,9.699e-05,2]
[420730538,1776504634355,-500.0,9.699e-05,2]
[420730539,1776504634363,-500.0,9.699e-05,2]
[420730540,1776504634372,-500.0,9.699e-05,2]
[420730541,1776504634381,-500.0,9.699e-05,2]
[420730542,1776504634390,-500.0,9.699e-05,2]
[420730543,1776504634400,-500.0,9.699e-05,2]
[420730544,1776504634410,-500.08668644,9.699e-05,2]
[420730545,1776504634419,-500.0,9.699e-05,2]
[420730546,1776504634428,-500.0,9.699e-05,2]
[420730547,1776504634438,-768.99,9.699e-05,2]
[420730548,1776504634447,-1292.0,9.7e-05,5]
[420730549,1776504634456,-250.0,9.7e-05,2]
[420730550,1776504634465,-116773.0849544,9.7e-05,2]
[420730551,1776504634479,-26783.94550835,9.7e-05,2]
[420730552,1776504634491,-28164.96015272,9.7e-05,2]
[420730553,1776504634514,-759.87220332,9.7e-05,2]
[420730554,1776504634525,-607.56498033,9.7e-05,2]
[420730555,1776504634538,-391.88,9.7e-05,2]
[420730556,1776504634549,-255.83894739,9.7e-05,2]
[420730557,1776504634564,-1421.69894956,9.7e-05,2]
[420730558,1776504634613,-459.42029784,9.7e-05,2]
[420730559,1776504634625,-1643.28648699,9.7e-05,2]
[420730560,1776504634636,-2114.8037051,9.7e-05,2]
[420730561,1776504634648,-555.92102686,9.7e-05,2]
[420730562,1776504634659,-1106.64191315,9.7e-05,2]
[420730563,1776504634671,-839.79820683,9.7e-05,2]
[420730564,1776504634695,-672.09,9.7e-05,2]
[420730565,1776504634710,-1258.9,9.7e-05,2]
[420730566,1776504634721,-6739.75353032,9.7e-05,2]
[420730568,1776504638148,-410.175902,9.7e-05,2]
[420730569,1776504638254,-12851.98583388,9.7e-05,2]
[420730570,1776504638301,-2890.96426327,9.7e-05,2]
[420730571,1776504638315,-2418.07525,9.7e-05,2]
[420730572,1776504638356,-20820.99609857,9.7e-05,2]
[420730573,1776504638465,-305.153193,9.7e-05,2]
[420730574,1776504638478,-809.73291563,9.7e-05,2]
[420730614,1776504640517,-1831.07688592,9.6e-05,2]
[420730615,1776504640540,-668.92311408,9.6e-05,2]
[420730616,1776504640550,-253.2602201,9.7e-05,2]
[420730617,1776504640562,-12880.50941468,9.7e-05,2]
[420730632,1776504643104,-2473.0,9.549e-05,2]
[420730633,1776504643115,-7693.24066878,9.7e-05,2]
[420730634,1776504643368,-2080.50294154,9.7e-05,2]
[420730642,1776504646056,-1615.96854113,9.7e-05,2]
[420730643,1776504646427,-4086.83482276,9.7e-05,2]
[420730644,1776504646483,-2563.63814344,9.7e-05,2]
[420730645,1776504646495,-1016.91454865,9.7e-05,2]
[420730646,1776504646538,-4950.91469702,9.7e-05,2]
[420730690,1776505832341,-166.07,8.681e-05,2]
[420730691,1776505832351,-390.59906801,8.693e-05,2]
[420730724,1776505838308,-496.39233885,8.693e-05,2]
[420730728,1776505838416,-1113.00859314,8.693e-05,2]
[420730729,1776505838426,-186.58594872,8.693e-05,30]
[420730730,1776505838436,-250.0,8.693e-05,2]
[420730731,1776505838446,-500.0,9.173e-05,2]
[420730732,1776505838455,-300.0,9.198e-05,2]
[420730733,1776505838464,-586.90992154,9.198e-05,2]
[420730734,1776505838499,-613.09007846,9.198e-05,2]
[420730735,1776505838509,-300.0,9.198e-05,2]
[420730736,1776505838521,-1084.11113442,9.199e-05,2]
[420730739,1776505842019,-259.39905185,9.199e-05,2]
[420730740,1776505842031,-946.05260061,9.199e-05,2]
[420730741,1776505842059,-872.10865093,9.199e-05,2]
[420730742,1776505842093,-787.67,9.199e-05,2]
[420730751,1776505844767,-673.3310658,9.199e-05,2]
[420730752,1776505844851,-562.39994,9.199e-05,2]
[420730753,1776505844863,-345.0,9.199e-05,2]
[420730754,1776505844874,-1066.1020261,9.199e-05,2]
[420730755,1776505844886,-666.66,9.199e-05,2]
[420730772,1776505846585,-14997.48861076,9.199e-05,2]
[420730773,1776505847316,-2666.32079483,9.199e-05,2]
[420730785,1776506101673,150.0,0.00015819,120]
[420730802,1776507030711,472.16,0.00013,60]
[420730809,1776507032637,-1528.66,8.193e-05,2]
[420730810,1776507032647,-300.0,8.259e-05,2]
[420730811,1776507032656,-1200.0,8.259e-05,2]
[420730812,1776507032666,-1407.97231777,8.26e-05,2]
[420730813,1776507032699,-192.02768223,8.26e-05,2]
[420730814,1776507032709,-150.0,8.26e-05,2]
[420730815,1776507032720,-150.0,8.26e-05,2]
[420730816,1776507032729,-99.84034661,8.26e-05,2]
[420730817,1776507032756,-50.15965339,8.26e-05,2]
[420730818,1776507032765,-150.0,8.26e-05,2]
[420730819,1776507032774,-150.0,8.26e-05,2]
[420730820,1776507032784,-150.0,8.26e-05,2]
[420730821,1776507032793,-136.49130564,8.26e-05,2]
[420730822,1776507032830,-13.50869436,8.26e-05,2]
[420730823,1776507032839,-150.0,8.26e-05,2]
[420730824,1776507032849,-150.0,8.26e-05,2]
[420730826,1776507032859,-150.0,8.26e-05,2]
[420730828,1776507032868,-235.92,8.302e-05,2]
[420730830,1776507032879,-200.0,8.399e-05,2]
[420730831,1776507032889,-166.66,8.481e-05,2]
[420730832,1776507032899,-6435.10360516,8.639e-05,2]
[420730833,1776507032910,-815.29639484,8.639e-05,2]
[420730834,1776507032920,-250.0,8.689e-05,2]
[420730835,1776507032930,-533.0,8.763e-05,2]
[420730836,1776507032939,-1300.0,8.781e-05,2]
[420730837,1776507032949,-255.0,8.798e-05,2]
[420730838,1776507032959,-1781.0,8.816e-05,2]
[420730839,1776507032970,-469.0,8.832e-05,2]
[420730840,1776507032980,-537.0,8.897e-05,2]
[420730841,1776507032990,-300.0,8.9e-05,3]
[420730842,1776507033000,-195.0,8.915e-05,2]
[420730843,1776507033010,-1139.0,8.932e-05,2]
[420730844,1776507033020,-859.0,8.95e-05,2]
[420730845,1776507033030,-486.0,8.968e-05,2]
[420730846,1776507033040,-500.0,8.973e-05,2]
[420730847,1776507033050,-160.08522662,8.973e-05,2]
[420730848,1776507033059,-501.59359258,8.973e-05,2]
[420730849,1776507033069,-165.24499508,8.973e-05,2]
[420730850,1776507033078,-502.10432319,8.973e-05,2]
[420730851,1776507033088,-349.55632459,8.973e-05,2]
[420730852,1776507033097,-600.0,8.973e-05,2]
[420730853,1776507033106,-150.0,8.996e-05,2]
[420730854,1776507033116,-1111.19127539,8.997e-05,2]
[420730855,1776507033125,-287.17028581,8.997e-05,2]
[420730856,1776507033135,-500.0,8.997e-05,2]
[420730857,1776507033146,-500.0,8.997e-05,2]
[420730858,1776507033155,-500.0,8.997e-05,2]
[420730859,1776507033164,-227.5822187,8.997e-05,2]
[420730860,1776507033174,-500.0,8.997e-05,2]
[420730861,1776507033184,-500.0,8.997e-05,2]
[420730862,1776507033194,-500.0,8.997e-05,2]
[420730863,1776507033204,-443.13955396,8.997e-05,2]
[420730864,1776507033215,-500.0,8.997e-05,2]
[420730865,1776507033224,-500.0,8.997e-05,2]
[420730866,1776507033234,-405.63972753,8.997e-05,2]
[420730867,1776507033244,-500.0,8.997e-05,2]
[420730868,1776507033254,-316.96226414,8.997e-05,2]
[420730869,1776507033264,-500.0,8.997e-05,2]
[420730870,1776507033273,-500.0,8.997e-05,2]
[420730871,1776507033283,-500.0,8.997e-05,2]
[420730872,1776507033293,-500.0,8.997e-05,2]
[420730873,1776507033302,-500.0,8.997e-05,2]
[420730874,1776507033312,-500.0,8.997e-05,2]
[420730875,1776507033322,-296.89710409,8.997e-05,2]
[420730876,1776507033331,-500.0,8.997e-05,2]
[420730877,1776507033341,-500.0,8.997e-05,2]
[420730878,1776507033350,-500.0,8.997e-05,2]
[420730879,1776507033359,-615.60250226,8.997e-05,2]
[420730880,1776507033369,-500.0,8.997e-05,2]
[420730881,1776507033380,-500.0,8.997e-05,2]
[420730882,1776507033390,-500.0,8.997e-05,2]
[420730883,1776507033400,-500.0,8.997e-05,2]
[420730884,1776507033409,-500.0,8.997e-05,2]
[420730885,1776507033420,-500.0,8.997e-05,2]
[420730886,1776507033429,-500.0,8.997e-05,2]
[420730887,1776507033439,-500.0,8.997e-05,2]
[420730888,1776507033448,-500.0,8.997e-05,2]
[420730889,1776507033458,-500.0,8.997e-05,2]
[420730890,1776507033468,-500.0,8.997e-05,2]
[420730891,1776507033478,-500.0,8.997e-05,2]
[420730892,1776507033487,-500.0,8.997e-05,2]
[420730893,1776507033497,-500.0,8.997e-05,2]
[420730894,1776507033507,-500.0,8.997e-05,2]
[420730895,1776507033517,-500.0,8.997e-05,2]
[420730896,1776507033526,-500.0,8.997e-05,2]
[420730897,1776507033536,-500.0,8.997e-05,2]
[420730898,1776507033545,-500.0,8.997e-05,2]
[420730899,1776507033555,-500.0,8.997e-05,2]
[420730900,1776507033564,-500.0,8.997e-05,2]
[420730901,1776507033573,-500.0,8.997e-05,2]
[420730902,1776507033583,-461.56025022,8.997e-05,2]
[420730903,1776507033592,-250.0,8.997e-05,2]
[420730904,1776507033602,-52309.57469354,8.998e-05,2]
[420730905,1776507033615,-22793.6960429,8.998e-05,2]
[420730906,1776507033627,-64515.78566537,8.998e-05,2]
[420730907,1776507033638,-2245.88125224,8.998e-05,2]
[420730908,1776507033653,-856.08682692,8.998e-05,2]
[420730909,1776507033665,-14145.21777574,8.998e-05,2]
[420730910,1776507033676,-262.02687277,8.998e-05,2]
[420730911,1776507033688,-3031.8631592,8.998e-05,2]
[420730913,1776507038634,-431.69598331,8.998e-05,2]
[420730914,1776507038646,-999.8506,8.998e-05,2]
[420730915,1776507038657,-1021.88178341,8.998e-05,2]
[420730916,1776507038668,-1033.56296967,8.998e-05,2]
[420730917,1776507038678,-1337.35,8.998e-05,2]
[420730918,1776507038689,-1164.20361154,8.998e-05,2]
[420730919,1776507038705,-993.71667762,8.998e-05,2]
[420730920,1776507038718,-469.22216,8.998e-05,2]
[420730921,1776507038729,-436.75223375,8.998e-05,2]
[420730922,1776507038751,-14989.6315154,8.998e-05,2]
[420730923,1776507038808,-3242.36316023,8.998e-05,2]
[420730924,1776507038868,-1587.54084284,8.998e-05,2]
[420730925,1776507038881,-435.0,8.998e-05,2]
[420730926,1776507038893,-328.61951461,8.998e-05,2]
[420730927,1776507038904,-384635.92291579,8.998e-05,2]
[420730928,1776507038915,-1738.835448,8.998e-05,2]
[420730958,1776507047431,-1087.81395171,8.998e-05,2]
[420730961,1776507047487,-72883.17977479,8.998e-05,2]
[420730967,1776507047601,-23580.51719375,8.998e-05,2]
[420730970,1776507047656,-265.1286,8.998e-05,2]
[420730971,1776507047667,-1898.27450502,8.998e-05,2]
[420730972,1776507047717,-27389.25085867,8.998e-05,2]
[420730973,1776507047825,-94302.0,8.998e-05,2]
[420730974,1776507047836,-475.64999975,8.998e-05,2]
[420730975,1776507047880,-2065.5238998,8.998e-05,2]
[420730979,1776507047907,-117208.39901166,8.998e-05,2]
[420730981,1776507047918,-419.0,9e-05,2]
[420730983,1776507047929,-700.0,9e-05,3]
[420730985,1776507047940,-1061.86623377,9e-05,2]
[420730987,1776507047951,-1526.93068013,9.012e-05,2]
[420730989,1776507047962,-250.0,9.012e-05,2]
[420730992,1776507047972,-4196.2039,9.073e-05,2]
[420730994,1776507047983,-420.0,9.085e-05,2]
[420730996,1776507047994,-131528.29528121,9.098e-05,2]
[420730998,1776507048006,-26800.88001879,9.098e-05,2]
[420731000,1776507048016,-2500.0,9.099e-05,2]
[420731002,1776507048026,-502.14384265,9.173e-05,2]
[420731004,1776507048036,-150.0,9.178e-05,2]
[420731006,1776507048046,-150.0,9.178e-05,2]
[420731008,1776507048055,-150.0,9.178e-05,2]
[420731010,1776507048065,-150.0,9.178e-05,2]
[420731012,1776507048075,-150.0,9.178e-05,2]
[420731014,1776507048084,-151.0,9.196e-05,2]
[420731015,1776507048094,-453.15662945,9.198e-05,2]
[420731016,1776507048104,-185.738,9.198e-05,2]
[420731017,1776507048114,-1324.72,9.198e-05,2]
[420731019,1776507048124,-151.0,9.199e-05,2]
[420731020,1776507048134,-302.0,9.199e-05,2]
[420731021,1776507048143,-151.0,9.199e-05,2]
[420731022,1776507048153,-151.0,9.199e-05,2]
[420731023,1776507048163,-151.0,9.199e-05,2]
[420731024,1776507048172,-151.0,9.199e-05,2]
[420731026,1776507048181,-151.0,9.199e-05,2]
[420731028,1776507048191,-151.0,9.199e-05,2]
[420731030,1776507048201,-151.0,9.199e-05,2]
[420731032,1776507048211,-151.0,9.199e-05,2]
[420731035,1776507048220,-151.0,9.199e-05,2]
[420731037,1776507048231,-193.19904348,9.199e-05,2]
[420731039,1776507048240,-151.0,9.199e-05,2]
[420731041,1776507048249,-152.0,9.199e-05,2]
[420731043,1776507048259,-1382.09009037,9.215e-05,2]
[420731045,1776507048268,-209.92029872,9.238e-05,2]
[420731046,1776507048278,-578.20924308,9.25e-05,2]
[420731049,1776507048293,-500.0,9.25e-05,2]
[420731051,1776507048303,-201.93286099,9.25e-05,2]
[420731053,1776507048313,-200.0,9.25e-05,2]
[420731054,1776507048322,-1377.42282659,9.25e-05,2]
[420731055,1776507048332,-824.76650872,9.25e-05,2]
[420731056,1776507048342,-200.0,9.25e-05,2]
[420731057,1776507048352,-151.0,9.25e-05,2]
[420731058,1776507048361,-743.50770149,9.25e-05,2]
[420731059,1776507048371,-2000.0,9.25e-05,2]
[420731060,1776507048381,-2000.0,9.25e-05,2]
[420731061,1776507048391,-2000.0,9.25e-05,2]
[420731062,1776507048400,-2000.0,9.25e-05,2]
[420731063,1776507048410,-695.39793187,9.25e-05,2]
[420731064,1776507048420,-2000.0,9.25e-05,2]
[420731065,1776507048430,-1031.36435892,9.25e-05,2]
[420731067,1776507050619,-968.63564108,9.25e-05,2]
[420731068,1776507050629,-174.61919142,9.25e-05,2]
[420731069,1776507050638,-1594.86467623,9.25e-05,2]
[420731070,1776507050663,-265.96,9.25e-05,2]
[420731071,1776507050674,-139.17532377,9.25e-05,2]
[420731072,1776507050683,-151.1837373,9.25e-05,2]
[420731073,1776507050692,-42.90288859,9.25e-05,2]
[420731074,1776507050703,-625.74896898,9.25e-05,2]
[420731075,1776507050712,-2000.0,9.25e-05,2]
[420731076,1776507050722,-201.93286099,9.25e-05,2]
[420731077,1776507050731,-201.93286099,9.25e-05,2]
[420731078,1776507050740,-2000.0,9.25e-05,2]
[420731079,1776507050750,-2000.0,9.25e-05,2]
[420731080,1776507050761,-2000.0,9.25e-05,2]
[420731081,1776507050771,-2000.0,9.25e-05,2]
[420731082,1776507050781,-279.9045709,9.25e-05,2]
[420731083,1776507050792,-227.34163157,9.25e-05,2]
[420731084,1776507050802,-152.0,9.25e-05,2]
[420731085,1776507050812,-235.75327194,9.25e-05,2]
[420731086,1776507050821,-152.0,9.25e-05,2]
[420731087,1776507050831,-244.476143,9.25e-05,2]
[420731088,1776507050840,-152.0,9.25e-05,2]
[420731089,1776507050850,-253.52176029,9.25e-05,2]
[420731090,1776507050859,-152.0,9.25e-05,2]
[420731091,1776507050869,-262.90206542,9.25e-05,2]
[420731092,1776507050879,-152.0,9.25e-05,2]
[420731093,1776507050889,-272.62944185,9.25e-05,2]
[420731094,1776507050900,-282.71673119,9.25e-05,2]
[420731095,1776507050910,-152.0,9.25e-05,2]
[420731096,1776507050919,-293.17725025,9.25e-05,2]
[420731097,1776507050928,-152.0,9.25e-05,2]
[420731098,1776507050937,-304.02480851,9.25e-05,2]
[420731099,1776507050946,-152.0,9.25e-05,2]
[420731100,1776507050955,-315.27372642,9.25e-05,2]
[420731101,1776507050964,-152.0,9.25e-05,2]
[420731102,1776507050973,-400.32179247,9.25e-05,2]
[420731103,1776507050986,-152.0,9.25e-05,2]
[420731104,1776507050996,-196.65292034,9.25e-05,2]
[420731105,1776507051006,-1600.0,9.292e-05,2]
[420731106,1776507051015,-279.87892307,9.298e-05,30]
[420731107,1776507051025,-500.0,9.305e-05,2]
[420731108,1776507051034,-151.0,9.305e-05,2]
[420731109,1776507051044,-528.0,9.344e-05,2]
[420731110,1776507051053,-500.0,9.36e-05,2]
[420731111,1776507051062,-151.0,9.36e-05,2]
[420731112,1776507051072,-295.04100014,9.405e-05,2]
[420731113,1776507051082,-500.0,9.41e-05,2]
[420731114,1776507051092,-500.0,9.415e-05,2]
[420731115,1776507051101,-151.0,9.415e-05,2]
[420731116,1776507051110,-268.0,9.454e-05,2]
[420731117,1776507051119,-500.0,9.47e-05,2]
[420731118,1776507051129,-151.0,9.47e-05,2]
[420731119,1776507051138,-528.0,9.492e-05,2]
[420731120,1776507051147,-484.0,9.495e-05,2]
[420731121,1776507051157,-155.0,9.498e-05,2]
[420731122,1776507051167,-622.0,9.499e-05,2]
[420731123,1776507051176,-3528.0,9.499e-05,2]
[420731124,1776507051185,-2473.0,9.499e-05,2]
[420731125,1776507051194,-6029.0,9.499e-05,2]
[420731126,1776507051204,-151.0,9.499e-05,2]
[420731127,1776507051214,-174.892688,9.499e-05,2]
[420731128,1776507051223,-217.172494,9.499e-05,2]
[420731129,1776507051234,-418.0,9.508e-05,2]
[420731130,1776507051244,-416.0,9.512e-05,2]
[420731131,1776507051254,-500.0,9.525e-05,2]
[420731132,1776507051264,-271.34949305,9.525e-05,2]
[420731133,1776507051273,-350.0,9.527e-05,2]
[420731134,1776507051283,-166.07,9.549e-05,2]
[420731135,1776507051292,-6761.408723,9.567e-05,2]
[420731136,1776507051301,-1001.3730617,9.567e-05,2]
[420731137,1776507051311,-66238.2971567,9.567e-05,2]
[420731138,1776507051320,-2690.4387912,9.567e-05,2]
[420731139,1776507051329,-151.0,9.567e-05,2]
[420731140,1776507051339,-1080.1538798,9.567e-05,2]
[420731141,1776507051348,-151.0,9.567e-05,2]
[420731142,1776507051357,-1757.4443827,9.567e-05,2]
[420731143,1776507051367,-151.0,9.567e-05,2]
[420731144,1776507051376,-151.0,9.567e-05,2]
[420731145,1776507051386,-151.0,9.567e-05,2]
[420731146,1776507051396,-151.0,9.567e-05,2]
[420731147,1776507051405,-151.0,9.567e-05,2]
[420731148,1776507051415,-151.0,9.567e-05,2]
[420731149,1776507051425,-151.0,9.567e-05,2]
[420731150,1776507051438,-151.0,9.567e-05,2]
[420731151,1776507051448,-151.0,9.567e-05,2]
[420731152,1776507051458,-151.0,9.567e-05,2]
[420731153,1776507051467,-151.0,9.567e-05,2]
[420731154,1776507051476,-151.0,9.567e-05,2]
[420731155,1776507051487,-151.0,9.567e-05,2]
[420731156,1776507051496,-179.645564,9.567e-05,2]
[420731157,1776507051505,-500.0,9.58e-05,2]
[420731158,1776507051515,-150.0,9.59e-05,2]
[420731159,1776507051524,-255.431314,9.591e-05,2]
[420731160,1776507051533,-733.37,9.6e-05,2]
[420731161,1776507051543,-838.1407394,9.6e-05,2]
[420731162,1776507051552,-311.39648373,9.625e-05,2]
[420731163,1776507051561,-500.0,9.635e-05,2]
[420731164,1776507051571,-764.0,9.643e-05,5]
[420731165,1776507051580,-810.0,9.643e-05,5]
[420731166,1776507051590,-484.0,9.662e-05,2]
[420731167,1776507051600,-500.0,9.684e-05,2]
[420731168,1776507051609,-500.0,9.69e-05,2]
[420731169,1776507051618,-14561.9313711,9.698e-05,2]
[420731170,1776507051628,-500.0,9.7e-05,2]
[420731171,1776507051638,-167.0,9.7e-05,3]
[420731172,1776507051648,-150.0,9.7e-05,3]
[420731173,1776507051658,-150.0,9.7e-05,3]
[420731174,1776507051668,-500.0,9.745e-05,2]
[420731175,1776507051678,-150.0,9.747e-05,21]
[420731176,1776507051690,-151.0,9.764e-05,2]
[420731177,1776507051699,-151.0,9.764e-05,2]
[420731178,1776507051710,-151.0,9.764e-05,2]
[420731179,1776507051719,-151.0,9.764e-05,2]
[420731180,1776507051729,-151.0,9.764e-05,2]
[420731181,1776507051738,-151.10774557,9.764e-05,2]
[420731182,1776507051748,-521.51461152,9.769e-05,2]
[420731183,1776507051758,-2000.0,9.78e-05,2]
[420731184,1776507051768,-166.66,9.798e-05,2]
[420731185,1776507051777,-209.40437684,9.798e-05,2]
[420731186,1776507051788,-200.0,9.798e-05,2]
[420731187,1776507051799,-1428.38747117,9.798e-05,2]
[420731188,1776507051812,-771.01748645,9.798e-05,2]
[420731189,1776507051822,-693.3919763,9.798e-05,2]
[420731190,1776507051832,-209.40437684,9.798e-05,2]
[420731191,1776507051842,-209.40437684,9.798e-05,2]
[420731192,1776507051852,-290.26104003,9.798e-05,2]
[420731193,1776507051863,-3285.27935009,9.8e-05,2]
[420731194,1776507051872,-167.0,9.8e-05,2]
[420731195,1776507051886,-167.0,9.8e-05,2]
[420731196,1776507051898,-168.14830299,9.8e-05,2]
[420731197,1776507051908,-1531.0,9.8e-05,2]
[420731198,1776507051918,-152.0,9.8e-05,2]
[420731199,1776507051928,-152.0,9.8e-05,2]
[420731200,1776507051941,-156.0,9.8e-05,2]
[420731201,1776507051952,-1531.0,9.8e-05,2]
[420731202,1776507051965,-156.0,9.8e-05,2]
[420731203,1776507051974,-1531.0,9.8e-05,2]
[420731204,1776507051985,-156.0,9.8e-05,2]
[420731205,1776507051995,-1531.0,9.8e-05,2]
[420731206,1776507052005,-169.62911148,9.8e-05,2]
[420731207,1776507052015,-1531.0,9.8e-05,2]
[420731208,1776507052025,-152.0,9.8e-05,2]
[420731209,1776507052035,-1531.0,9.8e-05,2]
[420731210,1776507052044,-152.0,9.8e-05,2]
[420731211,1776507052054,-1531.0,9.8e-05,2]
[420731212,1776507052065,-152.0,9.8e-05,2]
[420731213,1776507052075,-1531.0,9.8e-05,2]
[420731214,1776507052085,-152.0,9.8e-05,2]
[420731215,1776507052095,-1531.0,9.8e-05,2]
[420731216,1776507052106,-152.0,9.8e-05,2]
[420731217,1776507052116,-1531.0,9.8e-05,2]
[420731218,1776507052126,-152.0,9.8e-05,2]
[420731219,1776507052136,-1531.0,9.8e-05,2]
[420731220,1776507052145,-152.0,9.8e-05,2]
[420731221,1776507052155,-152.0,9.8e-05,2]
[420731222,1776507052165,-1531.0,9.8e-05,2]
[420731223,1776507052175,-1531.0,9.8e-05,2]
[420731224,1776507052185,-152.0,9.8e-05,2]
[420731225,1776507052195,-1531.0,9.8e-05,2]
[420731226,1776507052204,-152.0,9.8e-05,2]
[420731227,1776507052214,-1531.0,9.8e-05,2]